Cogmind - Beta 17.1 @@@ ROGUE MODE // 2026.09.01 @ 21:29:34 Player: ATOM Result: Destroyed by G-34 Mercenary with Small Laser Performance ------------- Evolutions (1) 500 Regions Visited (3) 600 Robots Destroyed (64) 320 Value Destroyed (1621) 1621 Prototype IDs (5) 100 Alien Tech Used (0) 0 Bonus (9438) 9438 TOTAL SCORE: 12579 Bonus ------- High Alert Combat Kills 55 Follower Combat Kills 33 Prayed to X0-1V1 5000 Major X0-1V1 Interference 4350 Cogmind --------- Core Integrity 0/400 Matter 290/300 Energy 80/100 System Corruption 0% Temperature Danger (436) Movement Treading (160) Location -9/Materials Parts ------- > --- POWER (1) -------- (None) > --- PROPULSION (3) --- Light Treads Light Treads Improved Treads > --- UTILITY (2) ------ Large Storage Unit Light Armor Plating > --- WEAPON (3) ------- Heavy EM Pulse Gun Heavy EM Pulse Gun Spread Laser > --- INVENTORY (15) --- Ion Engine Improved Heat Sink High-capacity Storage Unit Targeting Computer Light Armor Plating Heavy Explosive Trap Peak State ------------ > --- POWER ------------ Ion Engine > --- PROPULSION ------- Light Treads Improved Treads Improved Treads > --- UTILITY ---------- Large Storage Unit X0-1V1's Piety Tracker > --- WEAPON ----------- Heavy EM Pulse Gun Particle Gun Spread Laser > --- INVENTORY -------- Ion Engine Improved Heat Sink High-capacity Storage Unit Targeting Computer Light Armor Plating Light Armor Plating Heavy Explosive Trap Heavy Explosive Trap [Rating: 27] Favorites ----------- Power Ion Engine Engine Ion Engine Propulsion Improved Treads Treads Improved Treads Wheel Compact Wheel Utility Large Storage Unit Device X0-1V1's Piety Tracker Storage Large Storage Unit Protection Light Armor Plating Weapon Autogun Energy Gun Particle Gun Ballistic Gun Autogun Launcher Grenade Launcher Build | -11 -10 -10 -9 ------- Run | Yrd Mat Min Mat Slots Evolved 2 | . . . 2 Power . | . . . . Propulsion 1 | . . . 1 Utility . | . . . . Weapon 1 | . . . 1 Parts Attached 36 | 6 13 4 13 Power 6 | 1 4 . 1 Engine 6 | 1 4 . 1 Core . | . . . . Reactor . | . . . . Propulsion 10 | 2 2 2 4 Treads 9 | 2 2 1 4 Leg . | . . . . Wheel 1 | . . 1 . Hover . | . . . . Flight . | . . . . Utility 6 | 1 4 . 1 Device 2 | . 2 . . Storage 3 | 1 2 . . Processor . | . . . . Hackware . | . . . . Protection 1 | . . . 1 Artifact . | . . . . Weapon 14 | 2 3 2 7 Energy Gun 7 | 2 1 . 4 Energy Cannon . | . . . . Ballistic Gun 6 | . 2 2 2 Ballistic Cannon . | . . . . Launcher 1 | . . . 1 Special Weapon . | . . . . Impact Weapon . | . . . . Slashing Weapon . | . . . . Piercing Weapon . | . . . . Special Melee Weapon . | . . . . Unidentified Prototypes 1 | . 1 . . Parts Lost 16 | . 3 2 11 Power 3 | . 1 . 2 Propulsion 6 | . 1 1 4 Utility 1 | . . . 1 Weapon 6 | . 1 1 4 Highest Loss Streak 4 | . 1 1 4 To Critical Strikes . | . . . . Average Backups 8 | 1 8 10 8 Power 1 | . 1 2 1 Propulsion 2 | . 2 2 1 Utility 2 | . . 3 4 Weapon 2 | . 3 2 . Tool/Special . | . . . . Unused Backups 8 | . 3 . 5 Power 2 | . 1 . 1 Propulsion 1 | . 1 . . Utility 4 | . . . 4 Weapon 1 | . 1 . . Tool/Special . | . . . . Average Slot Usage (%) 93 | . 94 94 87 Engine 12 | . 13 14 9 Treads 23 | . 27 14 25 Wheel 3 | . . 8 4 Device 11 | . 10 14 10 Storage 13 | . 14 14 11 Energy Gun 11 | . 14 5 12 Ballistic Gun 15 | . 13 22 10 Peak Build Rating 27 | 6 23 23 27 Average Rating 17 | 4 12 22 23 On Entrance 13 | . 6 23 23 Avg Prop Armor Cover (%) 9 | . . 12 2 Naked Turns . | . . . . Heaviest Build 35 | 11 32 32 35 Greatest Support 66 | 40 46 43 66 Greatest Overweight (x) 1 | . . 1 1 Average Overweight (x) . | . . . . Largest Inventory Capacity 15 | 8 15 15 15 Average Capacity 13 | 7 12 15 15 Most Carried 15 | 2 10 15 14 Average Carried 9 | 1 8 11 10 Final Capacity 15 | 8 15 15 15 Final Carried 15 | 2 9 15 6 Class Distribution -------------------- 90% | Mutant 9% | Gunner Dominant Class ---------------- Mutant | -10/Materials Mutant | -10/Mines Gunner | -9/Materials Resources | -11 -10 -10 -9 ----------- Run | Yrd Mat Min Mat Matter Collected 1405 | 176 574 309 346 Remotely . | . . . . Salvage Created 1855 | . 877 530 448 Parts 121 | . 67 24 30 Haulers Intercepted 1 | . . . 1 Recyclers Shooed 1 | . 1 . . Parts Field Recycled . | . . . . Retrieved Matter . | . . . . Parts Self-Destructed . | . . . . Prevented . | . . . . Parts Restored . | . . . . Kills | -11 -10 -10 -9 ------- Run | Yrd Mat Min Mat Combat Hostiles Destroyed 53 | . 26 10 17 Guns 44 | . 25 10 9 AOE 8 | . . . 8 Classes Destroyed 11 | . 5 3 3 Worker 1 | . . 1 . Builder 1 | . 1 . . Hauler 1 | . . . 1 Recycler 2 | . . 2 . Operator 2 | . 2 . . Watcher 4 | . 3 . 1 Swarmer 20 | . 9 3 8 Grunt 24 | . 17 4 3 Brawler 1 | . . . 1 Duelist 1 | . . . 1 Sentry 7 | . . 3 4 Best Kill Streak 12 | . 12 3 7 Combat Bots Only 8 | . 8 3 7 Max Kills in Single Turn 3 | . 2 2 3 Gunslinging 1 | . 1 . . Exploded 3 | . . . 3 Melee . | . . . . Uniques/NPCs Destroyed . | . . . . Combat | -11 -10 -10 -9 -------- Run | Yrd Mat Min Mat Hostile Shots Fired 327 | . 121 60 146 Missed 95 | . 42 13 40 Hits 232 | . 79 47 106 Melee 3 | . . . 3 Projectile 229 | . 79 47 103 Critical Strikes 3 | . 1 1 1 Damage Taken 2886 | . 851 626 1409 Core 591 | . 102 88 401 Absorbed by Shields . | . . . . Regen/Repaired (Parts) 127 | . 127 . . Core Remaining (%) 62 | 100 . 24 . Volleys Fired 165 | . 86 37 42 Largest 3 | . 2 2 3 Hottest 155 | . 90 88 155 Shots Fired 333 | . 169 74 90 Gun 319 | . 169 74 76 Cannon . | . . . . Launcher 14 | . . . 14 Special . | . . . . Kinetic 181 | . 85 58 38 Thermal 122 | . 84 16 22 Explosive 14 | . . . 14 Electromagnetic 16 | . . . 16 Robot Hit Streak 18 | . 18 11 10 Robot Miss Streak 5 | . 5 3 3 Penetration Max . | . . . . Secondary Targets 4 | . 1 2 1 Max Gunslinging Chain 1 | . 1 1 1 Shots Hit Robots 214 | . 103 46 65 Core Hits 102 | . 41 20 41 Critical Kills 1 | . . 1 . Critical Parts Destroyed 1 | . . . 1 Critical Strikes 7 | . 3 2 2 Burn 4 | . 3 . 1 Destroy 3 | . . 2 1 Melee Attacks . | . . . . Impact . | . . . . Slashing . | . . . . Piercing . | . . . . Sneak Attacks . | . . . . Combat Hostiles . | . . . . Follow-up Attacks . | . . . . Damage Inflicted 3963 | . 1570 756 1637 Guns 3157 | . 1570 756 831 Cannons . | . . . . Explosions 806 | . . . 806 Melee . | . . . . Ramming . | . . . . Kinetic 1767 | . 833 580 354 Thermal 1463 | . 737 176 550 Explosive 559 | . . . 559 Electromagnetic 174 | . . . 174 Impact . | . . . . Slashing . | . . . . Piercing . | . . . . Highest Corruption 18 | . . 18 . Average Corruption 18 | . . 18 . Corruption Purged . | . . . . Corruption Blocked . | . . . . Effects 12 | . . 12 . Message Errors 3 | . . 3 . Matter Fused 2 | . . 2 . Heat Flow Errors 1 | . . 1 . Energy Discharges 1 | . . 1 . Data Loss (minor) 1 | . . 1 . Data Loss (major) 1 | . . 1 . Misfires 1 | . . 1 . Alerts 1 | . . 1 . Weapon Failures 1 | . . 1 . Overload Shots . | . . . . Overflow Damage 80 | . . . 80 Projectiles . | . . . . Explosions 80 | . . . 80 Melee . | . . . . Knockbacks . | . . . . Impact . | . . . . Kinetic . | . . . . Secondary . | . . . . Self-Inflicted Damage 117 | . . . 117 Shots 3 | . . . 3 Rammed . | . . . . Targets Rammed . | . . . . Kicked . | . . . . Crushed . | . . . . Highest Temperature 449 | . 142 373 449 Average Temperature 75 | . 29 113 115 Received Heat Transfer 1053 | . 336 255 462 Effects 5 | . . 4 1 Interference 3 | . . 3 . Matter Decay 1 | . . 1 . Short Circuit 1 | . . . 1 Siege Activations . | . . . . Martial Activations . | . . . . Shielding Activations . | . . . . Robots Disrupted . | . . . . Combat Hostiles . | . . . . Robots Corrupted . | . . . . Combat Hostiles . | . . . . Parts Fried . | . . . . Impact Corruptions . | . . . . Robots Melted 1 | . 1 . . Combat Hostiles 1 | . 1 . . Parts Melted 6 | . 4 1 1 Heat Transferred 3218 | . 1965 407 846 Parts Sabotaged . | . . . . Parts Stolen . | . . . . Parts Stripped . | . . . . Power Chain Reactions . | . . . . Alert | -11 -10 -10 -9 ------- Run | Yrd Mat Min Mat Maximum Alert Level 2 | . 1 . 2 Low Security (%) 71 | 100 75 100 17 Level 1 17 | . 24 . 24 Level 2 10 | . . . 57 Level 3 . | . . . . Level 4 . | . . . . Level 5 . | . . . . High Security . | . . . . Max Security . | . . . . Peak Influence 555 | . 275 76 555 Initial 76 | . . 76 . Average 117 | . 81 25 364 Influence Increases 1861 | . 723 267 871 Destroy 0b10 Robot/C 1080 | . 520 220 340 Destroy 0b10 Robot/NC 55 | . 30 15 10 Destroy Leader 180 | . 106 30 44 Allied During Kill 3 | . . 2 1 Trap Triggered on 0b10 10 | . . . 10 Successful Hack 18 | . 18 . . Disable Machine 45 | . 15 . 30 Destroy Structure 96 | . 4 . 92 Lose Combat Pursuer 90 | . 30 . 60 Miscellaneous 284 | . . . 284 Influence Decreases 1359 | . 525 462 372 Entered New Map 125 | . . 122 3 Time Decay 914 | . 345 320 249 Lost Part 150 | . 30 20 100 Lost Ally 20 | . . . 20 Purge Threat 150 | . 150 . . Squads Dispatched 9 | . 6 . 3 Investigation 5 | . 4 . 1 Extermination . | . . . . Reinforcement 3 | . 2 . 1 Assault 1 | . . . 1 Garrison . | . . . . Intercept . | . . . . Searches Triggered . | . . . . Construction Impeded . | . . . . Haulers Reinforced . | . . . . Active Scanning Responses . | . . . . Cargo Convoy Interrupts . | . . . . Stealth | -11 -10 -10 -9 --------- Run | Yrd Mat Min Mat Distress Signals 4 | . 2 . 2 Communications Jammed . | . . . . Distress Signals . | . . . . Times Spotted 84 | . 42 11 31 Peak Tracking Total 11 | . 5 3 11 Tactical Retreats 4 | . 1 . 3 Traps | -11 -10 -10 -9 ------- Run | Yrd Mat Min Mat Traps Triggered 3 | . 3 . . Indirectly . | . . . . Trap Hack Attempts . | . . . . Triggered . | . . . . Disarmed . | . . . . Reprogrammed . | . . . . Reused 1 | . . . 1 Traps Extracted . | . . . . Installed 1 | . . . 1 Triggered 1 | . . . 1 Most Traps Carried 2 | . . 2 2 Machines | -11 -10 -10 -9 ---------- Run | Yrd Mat Min Mat Machines Disabled 3 | . 1 . 2 Max in Single Turn 2 | . 1 . 2 Machines Repaired . | . . . . Machines Dismantled . | . . . . Machines Sabotaged . | . . . . Overloaded Fab Kills . | . . . . Hacking | -11 -10 -10 -9 --------- Run | Yrd Mat Min Mat Machines Accessed 8 | . 8 . . Terminals 6 | . 6 . . Fabricators . | . . . . Repair Stations 1 | . 1 . . Recycling Units 1 | . 1 . . Scanalyzers . | . . . . Garrison Access . | . . . . Total Hacks 23 | . 23 . . Successful 13 | . 13 . . Failed 10 | . 10 . . Catastrophic 3 | . 3 . . Database Lockouts . | . . . . Manual 1 | . 1 . . Terminals 19 | . 19 . . Fabricators . | . . . . Repair Stations 3 | . 3 . . Recycling Units 1 | . 1 . . Scanalyzers . | . . . . Garrison Access . | . . . . Terminal Hacks 9 | . 9 . . Record 2 | . 2 . . Prototype ID Bank 2 | . 2 . . Emergency Access Points 1 | . 1 . . Unreport Threat 1 | . 1 . . Dispatch Records 1 | . 1 . . Maintenance Status 1 | . 1 . . Hauler Manifests 1 | . 1 . . Fabricator Hacks . | . . . . Repair Station Hacks 3 | . 3 . . Scan Component 2 | . 2 . . Repair 1 | . 1 . . Recycling Unit Hacks 1 | . 1 . . Report Inventory 1 | . 1 . . Scanalyzer . | . . . . Garrison Access Hacks . | . . . . Unauthorized Hacks . | . . . . Terminals . | . . . . Fabricators . | . . . . Repair Stations . | . . . . Recycling Units . | . . . . Scanalyzers . | . . . . Garrison Access . | . . . . Data Cores Recovered . | . . . . Used . | . . . . Hacking Detections 6 | . 6 . . Full Trace Events 3 | . 3 . . Feedback Events . | . . . . Feedback Blocked . | . . . . Robot Schematics Acquired . | . . . . Robots Built . | . . . . Authchips . | . . . . Time . | . . . . Total Robot Build Rating . | . . . . Part Schematics Acquired . | . . . . Parts Built . | . . . . Authchips . | . . . . Time . | . . . . Total Part Build Rating . | . . . . Part Studies Acquired . | . . . . Parts Repaired 1 | . 1 . . Time 32 | . 32 . . Parts Recycled . | . . . . Recycled Matter . | . . . . Retrieved Matter . | . . . . Retrieved Components . | . . . . Parts Scanalyzed . | . . . . Part Schematics Acquired . | . . . . Parts Damaged . | . . . . Bothacking | -11 -10 -10 -9 ------------ Run | Yrd Mat Min Mat Used RIF Installer . | . . . . Robots Hacked . | . . . . Non-combat . | . . . . Combat . | . . . . Robot Hacks Applied . | . . . . Relay Couplers Released . | . . . . Fabnet Peak Effective % . | . . . . Robots Rewired . | . . . . Allies Hacked . | . . . . Hacks Repelled . | . . . . Allies | -11 -10 -10 -9 -------- Run | Yrd Mat Min Mat Total Allies 1 | . . 1 . Largest Group 1 | . . 1 1 Highest-Rated Group 31 | . . 31 31 Highest-Rated Ally 31 | . . 31 31 Total Orders . | . . . . Ally Attacks 6 | . . 6 . Total Damage 43 | . . 43 . Kills 1 | . . 1 . Allies Corrupted . | . . . . Allies Melted . | . . . . X0-1V1 Amusement Gains 30 | . 5 . 25 Average Entertainment 6 | . 5 2 13 Good Acts 1 | . . . 1 Bad Acts 12 | . . 6 6 Intel | -11 -10 -10 -9 ------- Run | Yrd Mat Min Mat Active Infowar (turns) . | . . . . Robot Analysis Total . | . . . . Derelict Logs Recovered . | . . . . Drone Launches . | . . . . Drone Recoveries . | . . . . Exploration | -11 -10 -10 -9 ------------- Run | Yrd Mat Min Mat Turns Passed 3205 | 92 1652 860 601 Spaces Moved 1641 | 53 825 563 200 Core 5 | 5 . . . Treads 1253 | 48 825 180 200 Legs . | . . . . Wheels 383 | . . 383 . Hover . | . . . . Flight . | . . . . Fastest Speed 50 | 50 160 115 160 Average Speed 151 | 149 160 129 177 Slowest Speed 240 | 160 160 160 240 Overloaded Moves . | . . . . Propulsion Burnouts . | . . . . Robots Hopped . | . . . . Potential Cave-ins . | . . . . Cave-ins Triggered . | . . . . Exploration Rate (%) 50 | 3 98 80 22 Regions Visited 3 Branch Regions 1 Pre-discovered Areas . | . . . . Known Exits Taken . | . . . . Unknown Exits Taken 3 | 1 1 1 . Scrap Searched 1 | . . 1 . Spaces Dug . | . . . . Terrain Destroyed 137 | . . . 137 Melee . | . . . . Projectile . | . . . . AOE 137 | . . . 137 Terrain Rammed . | . . . . Walls Destroyed . | . . . . Machines Disabled . | . . . . Actions | -11 -10 -10 -9 --------- Run | Yrd Mat Min Mat Total 2076 | 66 1007 631 372 Wait 173 | . 50 17 106 Move 1638 | 52 824 562 200 Hop . | . . . . Pick Up 43 | 8 20 9 6 Fast Attach 2 | . 1 1 . Attach 26 | 6 6 1 13 Detach . | . . . . Swap 12 | . 9 2 1 Drop 16 | . 11 2 3 Fire 165 | . 86 37 42 Melee . | . . . . Ram . | . . . . Kick . | . . . . Crush . | . . . . Escape Stasis . | . . . . Rewire . | . . . . Trap 1 | . . . 1 Miscellaneous . | . . . . Route ------- -11/Scrapyard -10/Materials (discovered 5 exits: [*Mat x3] / *Min / [*Sub]) -10/Mines -9/Materials (discovered 1 exit: [*Min]) History --------- Turn | Location | Event 6 | -11/Scrapyard | Discovered new exit (range 15) 93 | -11/Scrapyard | Entered Materials 311 | -10/Materials | Build established: Mutant 646 | -10/Materials | Discovered new exit (range 15) 1050 | -10/Materials | Discovered new exit (range 13) 1100 | -10/Materials | Discovered new exit (range 10) 1269 | -10/Materials | Destroyed 8 combat bots 1294 | -10/Materials | Discovered new exit (range 15) 1426 | -10/Materials | Repaired Imp. Treads 1649 | -10/Materials | Discovered new exit (range 9) 1679 | -10/Materials | Prayed at D.C.S.S. Altar Unit 1745 | -10/Materials | Entered Mines 1811 | -10/Mines | Discovered new exit (range 6) 1856 | -10/Mines | X0-1V1 vaporized surrounding terrain (radius 15) 2051 | -10/Mines | Core integrity fell below 50% 2197 | -10/Mines | X0-1V1 sent you into danger 2222 | -10/Mines | X0-1V1 tapped a No Entrance sign 2304 | -10/Mines | System corruption reached 10% 2384 | -10/Mines | Found a hidden stash of uninstalled traps 2396 | -10/Mines | Received a Mining Laser from a helpful Derelict 2605 | -10/Mines | Entered Materials 2605 | -9/Materials | Accompanied by 1 ally 2605 | -9/Materials | Evolved 2 slots: Propulsion x1, Weapon x1 2698 | -9/Materials | Destroyed 7 combat bots 2714 | -9/Materials | Lost 3 parts (1n2w) 2804 | -9/Materials | X0-1V1 sent hostile Y-45 Defender (x2) 2861 | -9/Materials | X0-1V1 added 0b10 threat records associated with you (major) 2867 | -9/Materials | Lost 4 parts (1p1n2w) 2874 | -9/Materials | X0-1V1 upgraded hostiles (x1) 2889 | -9/Materials | Core integrity fell below 50% 3003 | -9/Materials | Discovered new exit (range 7) 3005 | -9/Materials | First assault squad dispatched 3185 | -9/Materials | X0-1V1 vaporized surrounding terrain (radius 24) 3197 | -9/Materials | Core integrity fell below 20% 3206 | -9/Materials | Destroyed by G-34 Mercenary with Small Laser Last Messages --------------- 03190_ U-05 Engineer builds a Wall. 03191_ Installed Heavy Explosive Trap. 03191_ K-01 Serf cleans the Atomic Centrifuge. 03192_ X0-1V1's Piety Tracker destroyed. 03192_ X0-1V1 is mildly amused. 03194_ U-05 Engineer builds a Wall. 03195_ L-31 Rogue triggered Heavy Explosive Trap. 03195_ An explosion rips through the floor. 03195_ K-01 Serf cleans the Atomic Centrifuge. 03199_ U-05 Engineer builds a Wall. 03201_ K-01 Serf cleans the Atomic Centrifuge. 03202_ L-31 Rogue destroyed. 03202_ Switching to secondary target: G-34 Mercenary. 03203_ Imp. Treads destroyed. 03203_ U-05 Engineer builds a Wall. 03204_ Ion Engine destroyed. 03206_ X0-1V1 guffaws! Map ----- +----------------------------------------------------+ | ????????????????????????????????????????? | | ????????????????????????????????????????? | | ????????????????????????????????????????? | | ????????????????????????????????????????? | | ????????????????????????????????????????? | | ????????????????????????????????????????? | | ????????????????????????????????????????? | | ????????????????????????????????????????? | | ????????????????????????????????????????? | | ????????????????????????????????????????? | | ???????????????????????;;;;;????????????? | | ?????????????????????;;;; ??????????? | | ?????????????????? ==; ???????? | | ????????????????; ==; ?????? | | ?????????????? !!; ; ???? | | ????????????? !!; ; ???? | | ????????????? ==; ; ??? | | ????????????"+;;;;;;; ==; ; ??? | | ???????????? ; ;;;;; ;;; ?? | | ???????????? ; ; + ?? | | ?????????????? ; ; ; ?? | | ??????????????"" ; ;;;; ; "? | | ??????????????"" ;;;;;;;;;; ; + ? | | ??????????"" """ ; ; ;;;;;;+"# | | ????????? k ; ; ; ; ; | | ????????? ; @ ; ; ; """ # | | #????????";;;;;;;; % ; ; ; """ # | | #???????? ; / ; ;;; """ # | | #???????? ; %[ ; ; " | | #????????? # % g /o!/ " | | #????????? # * ;; ; !/ # | | #????????## ; ; ; ; !/ # | | #????????# ;;;;;+;;;;;;;; ; # | | ###########""###t;;;; ; [ # | | / ; g g + [ # | | ############ ; g ; # | | #???????# # " t ;;;;;""### | | #???????## # =" "???? | | #???????# # " ! "???? | | #???????## # ==+ #???? | | #????????# # =" #???? | | #????????# # "" """" """ #???? | | #????????### #" " " " ## ##???? | | #?????????############+""""+#### #????? | | #?????????### ## # #????? | | #???????????######## | # #????? | | ??????????????????# # #????? | | ###????????????????# # #????? | | #????????????????# # #????? | | #????????????????# ! [+ #????? | +----------------------------------------------------+ Best States ------------- Heat Dissipation 39 Energy Generation 10 Energy Capacity 250 Matter Stores 300 Matter Capacity 300 Sight Range 16 Terrain Scan Density 10 Armor Coverage 150 Evasion (%) 40 Recoil Reduction 3 Item Schematics ----------------- None Robot Schematics ------------------ None Fabricated ------------ Nothing Repaired ---------- Imp. Treads | 18% | -10/Materials Studied --------- None Alien Tech Used ----------------- None Achievements -------------- None Challenges ------------ None Game ------ Seed CommReactionImmobilizer Manual? 0 Play Time 00:28:45 Cumulative 44.6 hours Start 2026.09.01 @ 20:58:43 End 2026.09.01 @ 21:29:34 Sessions 1 Manual Loads 0 Difficulty Rogue Special Mode None Game No. 65 Rogue 65 Adventurer 0 Explorer 0 Win Type - Total 0 Types 0/0/0/0/0/0/0/0/0/0 Lore% 19 Gallery% 24 Achievement% 20 Wizard Run 0 Options --------- Layout 2 ASCII 0 Keyboard 0 Movement Mouse Keybinds 0 Fullscreen 1 Font 16/X11CapsBold Map View 50x49 Zoom Use 0% Tactical HUD 1 Map Filters NONE Filters NONE Steam SD RUN: 36ddd949-d6e8-45a8-8acc-f3c95a9d67e2